bitfinex/quotes_ETHUSD_20230117
["timestamp","ask_amount","ask_price","bid_price","bid_amount"]
[1673962316572,18.92212148,1571.0,1570.9,0.0396186]
[1673962321327,19.39972148,1571.0,1570.9,0.0396186]
[1673962323021,18.92212148,1571.0,1570.9,0.0396186]
[1673962325300,18.92212148,1571.0,1570.9,8.6e-06]
[1673962325614,18.92212148,1571.0,1570.8,3.0526034]
[1673962325825,15.84816407,1570.9,1570.8,3.0526034]
[1673962326095,15.86416407,1570.9,1570.8,3.0526034]
[1673962326245,12.74754,1570.9,1570.8,3.0526034]
[1673962327112,15.86416407,1570.9,1570.8,3.0526034]
[1673962327559,12.74754,1570.9,1570.8,3.0526034]
[1673962328242,15.300406,1570.9,1570.8,3.0526034]
[1673962328606,18.41703007,1570.9,1570.8,3.0526034]
[1673962329431,6.38177,1570.9,1570.8,3.0526034]
[1673962330404,15.86416407,1570.9,1570.8,3.0526034]
[1673962331444,22.22993407,1570.9,1570.8,3.0526034]
[1673962334402,12.74754,1570.9,1570.8,3.0526034]
[1673962335452,6.38177,1570.9,1570.8,3.0526034]
[1673962335819,0.016,1570.9,1570.8,4.3366034]
[1673962335929,0.016,1570.9,1570.8,5.6286034]
[1673962336144,1.944,1571.1,1570.8,5.7196034]
[1673962336399,1.944,1571.1,1571.0,3.0]
[1673962336607,1.944,1571.1,1571.0,4.294]
[1673962336821,1.944,1571.1,1571.0,4.524]
[1673962337400,1.944,1571.1,1571.0,5.524]
[1673962337622,1.944,1571.1,1571.0,4.385]
[1673962337863,1.944,1571.1,1571.0,3.0]
[1673962338688,1.944,1571.1,1571.0,4.294]
[1673962339711,1.944,1571.1,1571.0,3.0]
[1673962340708,8.30896,1571.1,1571.0,3.0]
[1673962340868,8.32496,1571.1,1571.0,3.0]
[1673962342452,14.68992,1571.1,1571.0,3.0]
[1673962342663,16.800379,1571.1,1571.0,3.0]
[1673962345084,14.68992,1571.1,1571.0,3.0]
[1673962347749,21.05488,1571.1,1571.0,3.0]
[1673962348901,21.05253779,1571.1,1571.0,3.0]
[1673962349130,1.95765779,1571.1,1571.0,3.0]
[1673962349272,1.94165779,1571.1,1571.0,10.64105282]
[1673962349477,1.94165779,1571.1,1571.0,9.72175106]
[1673962349752,1.94165779,1571.1,1571.0,9.43805282]
[1673962350250,1.94165779,1571.1,1571.0,12.33305282]
[1673962350643,1.94165779,1571.1,1571.0,13.28150306]
[1673962350851,1.94165779,1571.1,1571.0,12.28150306]
[1673962351096,1.94165779,1571.1,1571.0,9.88515607]
[1673962351844,17.98236764,1571.1,1571.0,3.091]
[1673962352051,17.99836764,1571.1,1571.0,3.0]
[1673962353333,21.00581158,1571.1,1571.0,3.0]
[1673962354311,8.80021779,1571.1,1571.0,3.0]
[1673962354796,11.33005648,1571.1,1571.0,3.0]
[1673962355259,8.80021779,1571.1,1571.0,3.0]
[1673962356164,2.43525779,1571.1,1571.0,3.0]
[1673962356328,1.94165779,1571.1,1571.0,4.451]
[1673962358152,1.94165779,1571.1,1571.0,5.451]
[1673962358343,1.94165779,1571.1,1571.0,8.542]
[1673962358892,1.94165779,1571.1,1571.0,7.542]
[1673962359490,1.94165779,1571.1,1571.0,29.26556024]
[1673962359703,1.94165779,1571.1,1571.0,36.21611186]
[1673962360030,0.066,1571.4,1571.1,2.86453012]
[1673962360223,0.002,1571.5,1571.3,15.7283]
[1673962360429,0.95048318,1571.7,1571.4,22.0415]
[1673962360687,2.52927076,1571.7,1571.6,1.448]
[1673962360901,0.95048318,1571.7,1571.6,1.448]
[1673962361110,2.52927076,1571.7,1571.6,1.448]
[1673962362432,2.52927663,1571.7,1571.6,1.448]
[1673962363032,1.14805651,1571.8,1571.6,4.448]
[1673962363235,1.08205651,1571.8,1571.7,1.451]
[1673962363382,2.66081861,1571.8,1571.7,1.451]
[1673962364048,2.66081861,1571.8,1571.7,2.451]
[1673962364376,0.13157333,1571.8,1571.7,8.81353]
[1673962364593,0.13157333,1571.8,1571.7,8.90453]
[1673962365748,0.13157333,1571.8,1571.7,23.31559]
[1673962366128,0.13157333,1571.8,1571.7,22.31559]
[1673962367027,0.13157333,1571.8,1571.7,15.95306]
[1673962367323,0.13157333,1571.8,1571.7,14.50206]
[1673962369074,0.13157333,1571.8,1571.7,20.86459]
[1673962369998,0.13157333,1571.8,1571.7,14.50206]
[1673962370215,0.13157333,1571.8,1571.7,20.86459]
[1673962371099,0.13157333,1571.8,1571.7,22.31159]
[1673962371421,0.13157333,1571.8,1571.7,25.31159]
[1673962372843,0.13157333,1571.8,1571.7,28.42821407]
[1673962374725,0.13157333,1571.8,1571.7,12.35653]
[1673962375413,0.13157333,1571.8,1571.7,18.71906]
[1673962375835,0.13157333,1571.8,1571.7,18.71706]
[1673962375991,0.13157333,1571.8,1571.7,28.19821407]
[1673962376777,0.13157333,1571.8,1571.7,28.42821407]
[1673962376983,0.13157333,1571.8,1571.7,31.42821407]
[1673962377304,0.13157333,1571.9,1571.8,1.04554845]
[1673962377462,0.13157333,1571.9,1571.8,23.01043252]
[1673962377671,0.13157333,1571.9,1571.8,26.10143252]
[1673962378542,0.13157333,1571.9,1571.8,24.65143252]
[1673962378990,0.13157333,1571.9,1571.8,31.01356252]
[1673962379522,0.13157333,1571.9,1571.8,39.94186252]
[1673962381243,0.13157333,1571.9,1571.8,26.89693845]
[1673962383796,0.13157333,1571.9,1571.8,19.09080845]
[1673962384601,0.13157333,1571.9,1571.8,3.13654845]
[1673962384821,0.13157333,1571.9,1571.8,3.04554845]
[1673962385183,8.05329333,1571.9,1571.8,3.04554845]
[1673962385342,2.70419866,1571.9,1571.8,3.04554845]
[1673962385554,0.60897333,1571.9,1571.8,3.04554845]
[1673962386236,6.97069333,1571.9,1571.8,3.04554845]
[1673962386443,6.98669333,1571.9,1571.8,3.04554845]
[1673962387389,0.62497333,1571.9,1571.8,3.04554845]
[1673962387596,0.60897333,1571.9,1571.8,3.04554845]
[1673962388848,0.13157333,1571.9,1571.8,3.04554845]
[1673962389082,0.13157333,1571.9,1571.8,15.76980845]
[1673962389386,0.13157333,1571.9,1571.8,25.45293845]
[1673962391232,0.13157333,1571.9,1571.8,19.09080845]
[1673962391537,0.13157333,1571.9,1571.8,12.72867845]
[1673962391797,0.13157333,1571.9,1571.8,12.72667845]
[1673962391957,0.13157333,1571.9,1571.8,12.72867845]
[1673962392386,0.13157333,1571.9,1571.8,19.09080845]
[1673962393589,0.13157333,1571.9,1571.8,12.72867845]
[1673962393744,1.69157333,1571.9,1571.8,3.13654845]
[1673962393958,1.69157333,1571.9,1571.8,3.04554845]
[1673962393959,1.86073066,1571.9,1571.8,3.04554845]
[1673962394161,0.30073066,1571.9,1571.8,3.04554845]
[1673962394377,0.77813066,1571.9,1571.8,3.04554845]
[1673962394911,7.13985066,1571.9,1571.8,3.04554845]
[1673962395161,11.07942163,1571.9,1571.8,3.04554845]
[1673962395563,17.93865845,1571.9,1571.8,0.04554845]
[1673962397102,11.57693845,1571.9,1571.8,0.04554845]
[1673962397314,13.47776144,1571.9,1571.8,0.04554845]
[1673962397537,11.57693845,1571.9,1571.8,0.04554845]
[1673962397747,13.47776144,1571.9,1571.8,0.04554845]
[1673962398738,13.47905122,1571.9,1571.8,0.04554845]
[1673962398977,12.0521442,1571.9,1571.8,0.04554845]
[1673962399157,14.42817293,1571.9,1571.8,0.04554845]
[1673962399372,12.0521442,1571.9,1571.8,0.04554845]
[1673962400325,10.6041442,1571.9,1571.8,0.04212365]
[1673962401048,12.03200074,1571.9,1571.8,0.04212365]
[1673962401601,10.6041442,1571.9,1571.8,0.04212365]
[1673962403332,27.89820827,1571.9,1571.8,0.04212365]
[1673962403671,30.274237,1571.9,1571.8,0.04212365]
[1673962403885,32.02141472,1571.9,1571.8,0.04212365]
[1673962404129,29.64538599,1571.9,1571.8,0.04212365]
[1673962404353,32.02141472,1571.9,1571.8,0.04212365]
[1673962404724,29.64538599,1571.9,1571.8,0.04212365]
[1673962405514,28.37341401,1571.9,1571.8,0.04212365]
[1673962405679,30.12059173,1571.9,1571.8,0.04212365]
[1673962406029,32.05179748,1571.9,1571.8,0.04212365]
[1673962406248,35.05179748,1571.9,1571.8,0.04212365]
[1673962406462,35.68853921,1571.9,1571.8,0.04212365]
[1673962407282,33.12529488,1571.9,1571.8,0.04212365]
[1673962409921,30.746563,1571.9,1571.8,0.04212365]
[1673962410147,33.12429298,1571.9,1571.8,0.04212365]
[1673962411923,30.746563,1571.9,1571.8,0.04212365]
[1673962412089,33.1242169,1571.9,1571.8,0.04212365]
[1673962412510,30.746563,1571.9,1571.8,0.04212365]
[1673962412710,33.59779748,1571.9,1571.8,0.04212365]
[1673962413072,25.50075792,1571.7,1571.4,3.0]
[1673962413265,3.8236138,1571.5,1571.4,3.0]
[1673962414088,7.81515,1571.3,1571.2,3.0]
[1673962414450,7.83115,1571.3,1571.2,3.0]
[1673962415013,0.016,1571.3,1571.2,3.0]
[1673962415274,6.37958,1571.5,1571.2,3.0]
[1673962415609,6.37958,1571.5,1571.4,3.0]
[1673962415971,0.016,1571.5,1571.4,3.0]
[1673962416147,0.016,1571.6,1571.4,3.0]
[1673962416297,8.82792929,1571.7,1571.4,3.0]
[1673962416667,9.13196906,1571.7,1571.4,3.0]
[1673962417193,7.37992929,1571.7,1571.4,3.0]
[1673962418136,7.37992929,1571.7,1571.3,19.18277]
[1673962418767,7.37992929,1571.7,1571.6,3.0]
[1673962418990,0.06631792,1571.7,1571.6,3.0]
[1673962419338,0.05031792,1571.7,1571.6,15.95588]
[1673962419552,0.05031792,1571.7,1571.6,23.61950407]
[1673962424175,0.05031792,1571.7,1571.6,19.04688]
[1673962424850,0.05031792,1571.7,1571.6,12.68394]
[1673962425071,0.05031792,1571.7,1571.6,12.45394]
[1673962425237,0.05031792,1571.7,1571.6,6.091]
[1673962425444,0.05031792,1571.7,1571.6,18.81688]
[1673962427596,0.05031792,1571.7,1571.6,25.40982]
[1673962430213,0.05031792,1571.7,1571.6,6.091]
[1673962430431,1.63813102,1571.7,1571.6,0.091]
[1673962430747,3.00784313,1571.7,1571.6,3.0]
[1673962430965,3.00784313,1571.7,1571.5,0.091]
[1673962431137,1.45559922,1571.7,1571.5,0.089]
[1673962431347,10.79699067,1571.7,1571.4,3.0]
[1673962431554,1.07969907,1571.6,1571.4,3.0]
[1673962432616,15.84267407,1571.6,1571.3,0.091]
[1673962432927,9.34455804,1571.5,1571.2,15.8281]
[1673962433134,7.80795137,1571.5,1571.2,15.8281]
[1673962433346,7.80795137,1571.5,1571.2,15.82410015]
[1673962433559,10.32067074,1571.5,1571.2,15.82410015]
[1673962433745,3.95729074,1571.5,1571.2,15.82410015]
[1673962433951,0.4775,1571.5,1571.2,22.18862015]
[1673962434200,0.4775,1571.5,1571.2,28.55318015]
[1673962434428,0.95107137,1571.6,1571.4,3.0]
[1673962434648,0.05031792,1571.7,1571.5,6.36334]
[1673962434867,0.05031792,1571.7,1571.5,6.45434]
[1673962435074,0.05031792,1571.7,1571.6,3.0]
[1673962435296,0.05031792,1571.7,1571.6,9.36294]
[1673962435615,0.05031792,1571.7,1571.6,17.50288]
[1673962435778,0.05031792,1571.7,1571.6,11.13994]
[1673962435993,0.05031792,1571.7,1571.6,4.547]
[1673962436223,0.05031792,1571.7,1571.6,3.0]
[1673962436708,0.05031792,1571.7,1571.6,9.59294]
[1673962436920,0.05031792,1571.7,1571.6,9.68394]
[1673962437186,0.05031792,1571.7,1571.6,20.50288]
[1673962437556,0.05031792,1571.7,1571.6,14.13994]
[1673962437806,0.05031792,1571.7,1571.6,6.091]
[1673962438861,0.05031792,1571.7,1571.6,3.091]
[1673962439071,0.69156671,1571.7,1571.6,3.0]
[1673962441392,0.05031792,1571.7,1571.6,3.0]
[1673962442915,0.05031792,1571.7,1571.6,9.36294]
[1673962443125,0.05031792,1571.7,1571.6,9.45194]
[1673962443368,0.05031792,1571.7,1571.6,9.45394]
[1673962443956,0.05231792,1571.7,1571.6,9.45194]
[1673962444172,0.05231792,1571.7,1571.6,3.091]
[1673962444173,0.15065685,1571.7,1571.6,3.091]
[1673962444394,0.15065685,1571.7,1571.6,3.002]
[1673962444643,0.15065685,1571.7,1571.6,3.0]
[1673962445238,2.65363003,1571.7,1571.6,3.0]
[1673962445780,1.10172822,1571.7,1571.6,3.0]
[1673962445991,0.05031792,1571.7,1571.6,3.0]
[1673962446912,8.91585491,1571.7,1571.6,3.0]
[1673962447154,21.65691491,1571.7,1571.5,13.4743]
[1673962447346,15.16901757,1571.7,1571.5,13.4743]
[1673962447557,10.38302248,1571.6,1571.5,13.4743]
[1673962447767,10.39902248,1571.6,1571.5,13.4743]
[1673962448227,16.76196248,1571.6,1571.5,13.4743]
[1673962448431,23.12490248,1571.6,1571.5,13.4743]
[1673962448642,24.07779939,1571.6,1571.5,13.4743]
[1673962448858,25.51979939,1571.6,1571.5,13.4743]
[1673962450397,28.63642346,1571.6,1571.5,13.4743]
[1673962451166,30.86469723,1571.6,1571.5,0.091]
[1673962451321,12.7283,1571.3,1571.1,3.0]
[1673962451532,6.43015,1571.3,1571.1,3.0]
[1673962451954,0.066,1571.3,1571.1,3.0]
[1673962452164,2.97913431,1571.4,1571.1,9.36488]
[1673962452497,2.97913431,1571.4,1571.1,14.25184]
[1673962452498,2.91313431,1571.4,1571.1,14.25184]
[1673962452709,2.91313431,1571.4,1571.3,3.0]
[1673962452710,2.43563431,1571.4,1571.3,3.0]
[1673962452940,2.43563431,1571.4,1571.3,9.36415]
[1673962453113,2.43563431,1571.4,1571.3,9.43015]
[1673962456894,2.43563431,1571.4,1571.3,3.066]
[1673962457160,2.43563431,1571.4,1571.2,0.07064031]
[1673962457516,2.43563431,1571.4,1571.2,0.00464031]
[1673962457517,0.24356343,1571.3,1571.2,0.00464031]
[1673962457839,8.86538431,1571.4,1571.2,0.00464031]
[1673962459660,2.50163431,1571.4,1571.2,6.36918031]
[1673962460037,2.43563431,1571.4,1571.3,3.0]
[1673962460322,2.43563431,1571.4,1571.2,0.07064031]
[1673962460481,8.80139431,1571.4,1571.1,6.064]
[1673962460700,0.88013943,1571.3,1571.1,6.066]
[1673962460902,0.88013943,1571.3,1571.1,3.066]
[1673962461152,2.50163431,1571.4,1571.1,22.09482]
[1673962461308,2.43563431,1571.4,1571.1,23.61682]
[1673962462194,2.43563431,1571.4,1571.2,12.95867]
[1673962462358,2.43563431,1571.4,1571.2,13.02467]
[1673962462799,2.43563431,1571.4,1571.3,3.0]
[1673962463053,2.43563431,1571.4,1571.3,15.7283]
[1673962463209,2.43563431,1571.4,1571.3,22.38845]
[1673962467335,2.43563431,1571.4,1571.3,3.066]
[1673962467672,2.43563431,1571.4,1571.3,9.36415]
[1673962467878,2.43563431,1571.4,1571.3,9.43015]
[1673962468036,2.43563431,1571.4,1571.3,15.7943]
[1673962469610,2.43563431,1571.4,1571.3,15.87324341]
[1673962469821,0.066,1571.6,1571.3,22.46739341]
[1673962470138,1.42875196,1571.7,1571.5,6.36334]
[1673962470295,1.42875196,1571.7,1571.5,22.15402]
[1673962470483,0.95135196,1571.7,1571.5,22.15602]
[1673962471042,2.50105533,1571.7,1571.5,22.15602]
[1673962471260,2.50105533,1571.7,1571.6,1.456]
[1673962471569,0.066,1571.8,1571.6,23.77482]
[1673962471880,1.08292529,1571.9,1571.7,4.456]
[1673962472073,1.08292529,1571.9,1571.8,9.49213]
[1673962472290,4.05266623,1571.9,1571.8,0.066]
[1673962472454,4.66764196,1571.9,1571.7,3.0]
[1673962472684,2.49410169,1571.8,1571.7,3.0]
[1673962472898,2.49386151,1571.8,1571.7,6.0]
[1673962473222,2.239577,1571.9,1571.7,6.066]
[1673962473223,3.19092896,1571.9,1571.7,6.066]
[1673962473469,3.12492896,1571.9,1571.7,6.06273086]
[1673962473801,0.95135196,1571.8,1571.7,6.06273086]
[1673962474323,2.96046262,1571.8,1571.7,6.06273086]
[1673962474472,2.96046262,1571.8,1571.7,3.06273086]
[1673962474682,2.96046262,1571.8,1571.7,2.99673086]
[1673962476436,4.38749056,1571.8,1571.7,2.99673086]
[1673962477092,3.4361386,1571.8,1571.7,2.99673086]
[1673962477531,9.7982686,1571.8,1571.6,0.066]
[1673962477901,3.47443059,1571.7,1571.5,13.87388086]
[1673962478262,1.9320508,1571.7,1571.5,13.87388086]
[1673962479255,1.9320508,1571.7,1571.5,20.23722086]
[1673962479471,0.95222394,1571.7,1571.5,20.23722086]
[1673962479622,2.49449779,1571.7,1571.5,26.60056086]
[1673962480065,1.01822394,1571.8,1571.5,26.60056086]
[1673962480372,0.95222394,1571.8,1571.7,2.99673086]
[1673962480830,2.49445289,1571.8,1571.7,2.99673086]
[1673962481929,0.95222394,1571.8,1571.7,2.99673086]
[1673962482145,2.96785588,1571.8,1571.7,2.99673086]
[1673962482388,9.32998588,1571.8,1571.7,2.99673086]
[1673962482563,9.39598588,1571.8,1571.7,2.99673086]
[1673962482776,10.82301382,1571.8,1571.6,0.066]
[1673962483143,1.08230138,1571.7,1571.5,4.514]
[1673962483357,6.36294,1571.6,1571.4,16.40713086]
[1673962483511,7.38116394,1571.6,1571.4,13.4104]
[1673962483723,7.38116394,1571.6,1571.4,0.066]
[1673962483986,7.38116394,1571.6,1571.3,3.0]
[1673962484303,0.73811639,1571.5,1571.3,3.0]
[1673962484458,7.10152639,1571.5,1571.3,3.0]
[1673962484676,7.16752639,1571.5,1571.2,17.07430854]
[1673962484914,8.11975033,1571.5,1571.2,16.46103086]
[1673962485666,1.75634033,1571.5,1571.2,19.82879]
[1673962485889,1.69034033,1571.5,1571.4,2.99673086]
[1673962486194,9.5960644,1571.5,1571.3,0.066]
[1673962486379,9.5960644,1571.5,1571.2,13.3983]
[1673962486380,0.16903403,1571.4,1571.2,13.4643]
[1673962486553,0.16903403,1571.4,1571.2,16.46103086]
[1673962487452,6.53278403,1571.4,1571.2,16.46103086]
[1673962487625,6.59878403,1571.4,1571.2,16.46103086]
[1673962488378,6.59878403,1571.4,1571.2,3.06273086]
[1673962488562,6.59878403,1571.4,1571.2,3.05873086]
[1673962488781,0.6598784,1571.3,1571.2,2.99673086]
[1673962492891,0.6598784,1571.3,1571.1,6.06273086]
[1673962492892,7.0240284,1571.3,1571.1,6.06273086]
[1673962493098,7.0900284,1571.3,1571.1,6.06273086]
[1673962494359,7.08625213,1571.3,1571.1,6.06273086]
[1673962495587,0.72210213,1571.3,1571.1,6.06273086]
[1673962495860,14.39245797,1571.4,1571.1,6.06273086]
[1673962497428,14.39245797,1571.4,1571.1,3.066]
[1673962497640,14.39245797,1571.4,1571.1,3.0]
[1673962497856,13.44023403,1571.4,1571.1,3.0]
[1673962498065,13.44023403,1571.4,1571.3,2.99673086]
[1673962500084,13.44023403,1571.4,1571.2,0.066]
[1673962500371,13.44023403,1571.4,1571.1,9.36493]
[1673962500589,13.44023403,1571.4,1571.1,9.43093]
[1673962501710,14.39245797,1571.4,1571.1,9.43093]
[1673962502267,13.44023403,1571.4,1571.1,9.43093]
[1673962502692,13.44023403,1571.4,1571.3,2.99673086]
[1673962504010,0.066,1571.4,1571.3,2.99673086]
[1673962504264,0.066,1571.5,1571.3,9.36088086]
[1673962504475,0.002,1571.5,1571.3,22.15518086]
[1673962504688,0.95222394,1571.7,1571.4,3.23]
[1673962505007,2.49367403,1571.7,1571.4,11.04352]
[1673962505330,1.01822394,1571.8,1571.6,2.99673086]
[1673962505639,0.95222394,1571.8,1571.6,9.35966086]
[1673962505788,0.95222394,1571.8,1571.6,9.42566086]
[1673962505789,2.49363078,1571.8,1571.6,9.42566086]
[1673962505998,0.95222394,1571.8,1571.6,3.06273086]
[1673962506207,2.49363008,1571.8,1571.6,2.99673086]
[1673962507713,0.95222394,1571.8,1571.6,2.99673086]
[1673962507909,3.92051468,1571.8,1571.6,2.99673086]
[1673962508123,5.79491458,1571.8,1571.6,2.99673086]
[1673962508334,4.31965178,1571.8,1571.6,2.99673086]
[1673962508524,2.49350493,1571.7,1571.6,2.99673086]
[1673962508749,2.49350493,1571.7,1571.5,0.066]
[1673962509100,2.49350493,1571.7,1571.4,9.42941]
[1673962509941,24.35669888,1571.8,1571.5,2.99673086]
[1673962509942,17.04432178,1571.8,1571.5,2.99673086]
[1673962511086,2.49347936,1571.7,1571.5,2.99673086]
[1673962511518,12.14165502,1571.7,1571.5,2.99673086]
[1673962511708,8.85641936,1571.6,1571.5,2.99673086]
[1673962511942,6.42894,1571.6,1571.5,2.99673086]
[1673962512151,0.066,1571.6,1571.5,2.99673086]
[1673962512370,1.49562394,1571.8,1571.5,22.08675086]
[1673962512537,0.95222394,1571.8,1571.5,22.15275086]
[1673962512901,0.95222394,1571.8,1571.6,2.99673086]
[1673962513116,2.49335231,1571.8,1571.6,9.35954086]
[1673962513331,2.57682521,1571.9,1571.6,9.42554086]
[1673962513499,1.14779727,1571.9,1571.6,15.78848086]
[1673962513713,1.08379727,1571.9,1571.6,15.78848086]
[1673962513902,1.08379727,1571.9,1571.6,12.79175]
[1673962514367,1.08379727,1571.9,1571.8,2.99673086]
[1673962514584,2.62501465,1571.9,1571.8,2.99673086]
[1673962514759,4.35686291,1571.9,1571.8,2.99439826]
[1673962515745,4.83166691,1571.9,1571.8,2.99439826]
[1673962515957,11.19338691,1571.9,1571.8,2.99439826]
[1673962516150,11.25938691,1571.9,1571.8,2.99439826]
[1673962517991,12.21086252,1571.9,1571.8,2.99439826]
[1673962519429,29.00154202,1571.9,1571.6,0.066]
[1673962519578,6.36253,1571.7,1571.5,2.99439826]
[1673962519792,6.42853,1571.7,1571.5,2.99439826]
[1673962520271,20.10504636,1571.7,1571.5,2.99439826]
[1673962520497,2.01050464,1571.6,1571.5,2.99439826]
[1673962520695,8.37344464,1571.6,1571.5,2.99439826]
[1673962520844,8.43944464,1571.6,1571.5,2.99439826]
[1673962521212,2.07650464,1571.6,1571.5,2.99439826]
[1673962521366,2.01050464,1571.6,1571.5,2.99439826]
[1673962521578,0.066,1571.7,1571.5,2.99439826]
[1673962521947,10.50523055,1571.8,1571.5,9.35773826]
[1673962522136,10.34675138,1571.8,1571.5,9.42373826]
[1673962522315,8.60080261,1571.8,1571.5,9.42373826]
[1673962523053,8.60080261,1571.8,1571.7,2.99439826]
[1673962523265,10.1416799,1571.8,1571.7,2.99439826]
[1673962525152,10.61725148,1571.8,1571.7,2.99439826]
[1673962525361,16.97951148,1571.8,1571.7,2.9906769]
[1673962525573,28.38945865,1571.8,1571.5,3.0566769]
[1673962525788,12.72668,1571.5,1571.4,2.9906769]
[1673962526059,15.90930407,1571.5,1571.4,2.9906769]
[1673962526993,24.7652414,1571.5,1571.4,2.9906769]
[1673962527528,27.63968391,1571.5,1571.2,0.066]
[1673962527696,0.95180565,1571.3,1571.0,0.14384442]
[1673962527890,6.36456,1571.2,1571.0,0.07984442]
[1673962528103,6.43056,1571.2,1571.0,0.07784442]
[1673962528420,15.91174407,1571.2,1571.0,0.07784442]
[1673962530036,9.54718407,1571.2,1571.0,0.07784442]
[1673962530217,0.95471841,1571.1,1571.0,0.07784442]
[1673962531935,0.066,1571.2,1571.0,0.07784442]
[1673962532149,6.90771,1571.3,1571.0,0.07784442]
[1673962532315,10.02433407,1571.3,1571.1,2.9906769]
[1673962533457,0.69112757,1571.2,1571.1,2.9906769]
[1673962536936,0.69312757,1571.2,1571.1,2.9906769]
[1673962537082,0.69112757,1571.2,1571.1,10.3556369]
[1673962537419,0.69112757,1571.2,1571.1,18.4725969]
[1673962537635,0.69112757,1571.2,1571.1,21.4725969]
[1673962539168,0.69112757,1571.2,1571.1,27.6075569]
[1673962539700,0.69112757,1571.2,1571.1,26.6075569]
[1673962540413,0.69112757,1571.2,1571.1,25.1515569]
[1673962542515,0.69112757,1571.2,1571.1,25.23050553]
[1673962542725,0.69112757,1571.2,1571.1,25.1515569]
[1673962543157,0.69112757,1571.2,1571.1,25.3815569]
[1673962544800,0.69112757,1571.2,1571.1,25.1515569]
[1673962544931,0.69112757,1571.2,1571.1,12.4216369]
[1673962545418,0.69112757,1571.2,1571.1,18.86554578]
[1673962545742,0.69112757,1571.2,1571.1,18.7865969]
[1673962545882,0.69112757,1571.2,1571.1,25.23050538]
[1673962546085,0.69112757,1571.2,1571.1,25.46050538]
[1673962546934,0.69112757,1571.2,1571.1,25.3815569]
[1673962547149,0.69112757,1571.2,1571.1,12.4216369]
[1673962548318,0.68904363,1571.2,1571.1,12.4216369]
[1673962550414,0.68904363,1571.2,1571.1,18.86554585]
[1673962550668,0.68904363,1571.2,1571.1,25.1515569]
[1673962550978,0.68904363,1571.2,1571.1,18.7865969]
[1673962555812,0.68904363,1571.2,1571.1,6.0566769]
[1673962559433,13.41816363,1571.2,1571.1,0.066]
[1673962559694,22.81997812,1571.2,1571.0,0.07784442]
[1673962559872,2.28199781,1571.1,1571.0,0.07784442]
[1673962560072,8.64695781,1571.1,1571.0,0.07784442]
[1673962560284,8.71295781,1571.1,1571.0,0.07784442]
[1673962561576,15.07791781,1571.1,1571.0,0.07784442]
[1673962564121,22.13550975,1571.1,1571.0,0.07784442]
[1673962564277,22.61310975,1571.1,1571.0,0.07784442]
[1673962564484,28.97806975,1571.1,1571.0,0.07784442]
[1673962564748,30.40551226,1571.1,1571.0,0.07784442]
[1673962565069,30.72319198,1571.1,1571.0,0.07784442]
[1673962565753,28.97806975,1571.1,1571.0,0.07784442]
[1673962566615,26.48410188,1571.1,1571.0,0.07784442]
[1673962566908,17.00251781,1571.1,1571.0,0.07784442]
[1673962567156,9.19055781,1571.1,1571.0,0.07784442]
[1673962567374,0.066,1571.1,1571.0,0.07784442]
[1673962567590,9.33664244,1571.1,1571.0,0.07784442]
[1673962567905,3.03768244,1571.1,1571.0,0.07784442]
[1673962568090,2.97168244,1571.1,1571.0,0.07784442]
[1673962568279,5.3965393,1571.1,1571.0,0.07430726]
[1673962568498,4.51073365,1571.1,1571.0,0.07430726]
[1673962568705,6.93855573,1571.1,1571.0,0.07430726]
[1673962568912,7.00453104,1571.1,1571.0,0.07430726]
[1673962569123,7.00453765,1571.1,1571.0,0.07430726]
[1673962569364,13.36949765,1571.1,1571.0,0.07430726]
[1673962569694,14.91127232,1571.1,1571.0,0.07430726]
[1673962570214,12.417692,1571.1,1571.0,0.07430726]
[1673962570903,13.36949765,1571.1,1571.0,0.07430726]
[1673962571105,12.417692,1571.1,1571.0,0.07430726]
[1673962574083,6.052732,1571.1,1571.0,0.07430726]
[1673962574262,3.62787514,1571.1,1571.0,0.07430726]
[1673962574470,3.08627514,1571.1,1571.0,0.07430726]
[1673962574748,3.08427514,1571.1,1571.0,0.07430726]
[1673962576483,1.54199835,1571.1,1571.0,0.07430726]
[1673962578412,1.5392885,1571.1,1571.0,0.07430726]
[1673962578624,1.5392885,1571.1,1571.0,7.78767726]
[1673962578784,2.0168885,1571.1,1571.0,7.85367726]
[1673962579261,1.5392885,1571.1,1571.0,7.85367726]
[1673962580620,1.5392885,1571.1,1571.0,6.50567726]
[1673962591656,1.5392885,1571.1,1571.0,6.58463711]
[1673962592270,1.5392885,1571.1,1571.0,6.50567726]
[1673962594501,1.5392885,1571.1,1571.0,0.14030726]
[1673962594710,1.5392885,1571.1,1571.0,0.07430726]
[1673962594904,10.71717273,1571.1,1571.0,0.07430726]
[1673962595233,23.51309273,1571.1,1571.0,0.07430726]
[1673962595388,26.6297168,1571.1,1571.0,0.07430726]
[1673962595599,29.0074447,1571.1,1571.0,0.07430726]
[1673962595861,30.75390138,1571.1,1571.0,0.07430726]
[1673962596285,28.85181034,1571.1,1571.0,0.07430726]
[1673962596685,30.75390138,1571.1,1571.0,0.07430726]
[1673962596859,28.85181034,1571.1,1571.0,0.07430726]
[1673962597070,28.05883776,1571.1,1571.0,0.07430726]
[1673962597326,28.85181034,1571.1,1571.0,0.07430726]
[1673962599120,29.32941034,1571.1,1571.0,0.07430726]
[1673962599338,27.58295366,1571.1,1571.0,0.07430726]
[1673962599509,29.32941034,1571.1,1571.0,0.07430726]
[1673962602063,28.85181034,1571.1,1571.0,0.07430726]
[1673962602467,27.10535366,1571.1,1571.0,0.07126084]
[1673962602674,28.85181034,1571.1,1571.0,0.07126084]
[1673962605271,27.10535366,1571.1,1571.0,0.07126084]
[1673962605486,28.85181034,1571.1,1571.0,0.07126084]
[1673962606898,29.32941034,1571.1,1571.0,0.07126084]
[1673962607071,31.234119,1571.1,1571.0,0.07126084]
[1673962607265,29.32645887,1571.1,1571.0,0.07126084]
[1673962610366,30.77245887,1571.1,1571.0,0.07126084]
[1673962611386,37.03533991,1571.1,1571.0,0.07126084]
[1673962612138,37.03533991,1571.1,1570.9,0.65677112]
[1673962612139,1.0,1571.0,1570.9,0.65677112]
[1673962612471,31.91268222,1571.0,1570.9,0.65677112]
[1673962612690,33.7251389,1571.0,1570.9,0.65677112]
[1673962613366,35.15448852,1571.0,1570.9,0.65677112]
[1673962614219,34.15448852,1571.0,1570.9,0.65677112]
[1673962614445,34.63208852,1571.0,1570.9,0.65677112]
[1673962615013,32.72577916,1571.0,1570.9,0.65677112]
[1673962615168,15.90639324,1571.0,1570.9,0.65677112]